bitfinex/quotes_ETHUSD_20250414
["timestamp","ask_amount","ask_price","bid_price","bid_amount"]
[1744610456069,10.64263,1623.3,1622.9,4.92937]
[1744610456275,10.64266,1623.3,1622.9,4.92937]
[1744610456476,4.92854,1623.2,1622.8,6.69556412]
[1744610457306,9.85729,1623.2,1622.8,6.63395]
[1744610457973,4.92854,1623.2,1622.8,11.56351]
[1744610458308,10.64261,1623.3,1622.9,4.92929]
[1744610458529,4.92858,1623.2,1622.8,6.63396]
[1744610458725,4.92858,1623.2,1622.9,0.663396]
[1744610459591,4.92858,1623.2,1622.7,12.11206]
[1744610459834,4.92897,1623.1,1622.7,12.17367755]
[1744610460189,5.71506,1623.0,1622.6,4.93031]
[1744610460387,5.71506,1623.0,1622.5,8.92027804]
[1744610460388,4.92955,1622.9,1622.5,10.67943]
[1744610460587,4.92955,1622.9,1622.6,1.067943]
[1744610461242,0.7631,1622.9,1622.3,0.8161]
[1744610461394,4.93092,1622.5,1622.2,1.309287]
[1744610461587,4.93099,1622.4,1622.0,8.91960804]
[1744610461833,10.62528,1622.4,1622.0,5.74826]
[1744610462003,5.69409,1622.4,1622.0,13.85160804]
[1744610462329,5.69409,1622.4,1622.0,8.91944804]
[1744610462531,10.6253,1622.4,1622.0,8.91944804]
[1744610462692,5.69409,1622.4,1622.0,8.91944804]
[1744610462894,4.93017,1622.7,1622.3,5.74726]
[1744610463099,3.0,1622.7,1622.4,4.9309]
[1744610463305,12.86039,1622.7,1622.3,5.74726]
[1744610463626,3.0,1622.7,1622.1,6.6398648]
[1744610463798,4.93107,1622.4,1622.0,10.68006]
[1744610464001,4.93107,1622.4,1622.1,1.068006]
[1744610464399,12.81996003,1622.5,1621.8,5.74875]
[1744610464593,4.9317,1622.2,1621.8,5.74875]
[1744610464996,5.69522,1622.1,1621.7,8.10442804]
[1744610465408,5.6952,1622.1,1621.7,3.17134804]
[1744610465610,4.93233,1622.0,1621.6,5.74945]
[1744610465824,4.9326,1621.9,1621.5,8.10503804]
[1744610466143,4.93279,1621.8,1621.5,8.10503804]
[1744610466342,4.93279,1621.8,1621.4,13.91406008]
[1744610466635,4.93251,1621.9,1621.5,4.93368]
[1744610466805,0.7631,1622.1,1621.9,4.93237]
[1744610467225,12.36299,1622.2,1621.9,4.93237]
[1744610467727,4.93232,1622.0,1621.6,4.93336]
[1744610468133,9.86479,1622.0,1621.6,4.93336]
[1744610468334,4.93232,1622.0,1621.6,4.93336]
[1744610468659,4.93265,1621.9,1621.6,1.44297751]
[1744610469149,4.93265,1621.9,1621.5,6.32506701]
[1744610469652,4.93265,1621.9,1621.5,11.25860701]
[1744610470152,4.93265,1621.9,1621.5,6.32491701]
[1744610470512,4.93306,1621.8,1621.4,13.91406008]
[1744610470745,5.69636,1621.7,1621.4,1.80099008]
[1744610471229,4.9337,1621.5,1621.4,1.80099008]
[1744610471433,4.93405,1621.4,1621.1,0.02]
[1744610471935,9.8683,1621.4,1621.1,0.02]
[1744610472336,4.93438,1621.3,1621.1,0.02]
[1744610473443,4.93405,1621.4,1621.1,0.02]
[1744610474036,5.69754,1621.3,1621.1,0.02]
[1744610474237,4.93461,1621.2,1621.1,0.02]
[1744610475462,5.69754,1621.3,1621.1,0.02]
[1744610475817,5.99999,1621.4,1621.1,0.02]
[1744610476021,5.99999,1621.4,1621.2,0.8161]
[1744610476746,5.99999,1621.4,1621.1,0.02]
[1744610476951,10.93402,1621.4,1621.1,0.02]
[1744610477762,5.99999,1621.4,1621.1,8.29781519]
[1744610477952,5.99999,1621.4,1621.3,0.8161]
[1744610478157,5.99999,1621.4,1621.3,1.39117]
[1744610478499,5.99999,1621.4,1621.3,0.8161]
[1744610479945,10.93399,1621.4,1621.1,0.8328]
[1744610480264,4.93433,1621.3,1621.1,0.8328]
[1744610481844,4.934,1621.4,1621.1,0.8328]
[1744610482072,9.86819,1621.4,1621.1,0.8328]
[1744610482369,4.93461,1621.2,1621.1,0.02]
[1744610482724,11.6992,1621.2,1621.1,0.02]
[1744610484931,10.9346,1621.2,1621.1,0.02]
[1744610485527,5.99999,1621.2,1621.1,0.02]
[1744610485749,17.29683,1621.5,1621.1,0.02]
[1744610485927,17.29683,1621.5,1621.1,5.95008861]
[1744610486123,4.93288,1621.8,1621.1,5.95008861]
[1744610486124,4.93309,1621.7,1621.2,0.7752]
[1744610486352,4.93279,1621.8,1621.4,4.934]
[1744610486630,4.93279,1621.8,1621.5,0.7752]
[1744610487039,10.93248,1621.9,1621.5,0.7752]
[1744610487261,4.93249,1621.9,1621.5,6.773063]
[1744610487470,4.93218,1622.0,1621.5,1.839503]
[1744610487685,4.93299,1621.8,1621.5,0.7752]
[1744610488357,4.93251,1621.9,1621.5,0.7752]
[1744610488574,4.93251,1621.9,1621.5,5.70877]
[1744610488877,9.86458,1622.0,1621.5,5.70887]
[1744610489576,4.9322,1622.0,1621.5,10.6424]
[1744610489774,4.9322,1622.0,1621.6,5.99763]
[1744610490907,4.9322,1622.0,1621.6,10.93088]
[1744610491186,3.7646,1622.2,1621.6,1.06424]
[1744610491389,9.86545,1621.9,1621.5,0.7752]
[1744610491570,4.93282,1621.8,1621.5,0.7752]
[1744610492001,9.8658,1621.8,1621.5,0.7752]
[1744610492507,4.93282,1621.8,1621.5,0.7752]
[1744610492713,4.9331,1621.7,1621.5,0.7752]
[1744610493315,9.86643,1621.7,1621.5,0.7752]
[1744610493480,4.9334,1621.6,1621.3,0.7752]
[1744610493679,5.69715,1621.9,1621.3,1.346172]
[1744610493899,4.934,1621.4,1621.1,7.1582]
[1744610494210,4.9335,1621.6,1621.2,4.93449]
[1744610494391,4.9335,1621.6,1621.3,0.7752]
[1744610494598,4.93318,1621.7,1621.3,5.7095]
[1744610494771,4.93371,1621.5,1621.3,1.839595]
[1744610495109,4.93352,1621.6,1621.3,0.7752]
[1744610495271,9.86712,1621.6,1621.3,0.7752]
[1744610495467,4.934,1621.4,1621.1,7.134]
[1744610495672,4.934,1621.4,1621.1,0.771]
[1744610496977,4.93439,1621.3,1621.1,0.771]
[1744610497177,4.93439,1621.3,1621.1,0.02]
[1744610497692,10.69332,1621.5,1621.1,4.95487]
[1744610498508,5.75952,1621.5,1621.1,5.95003722]
[1744610498709,4.93372,1621.5,1621.2,0.751]
[1744610499519,10.93282,1621.8,1621.4,4.934]
[1744610499681,5.99999,1621.8,1621.5,0.751]
[1744610499886,4.93252,1621.9,1621.5,10.61804]
[1744610500083,4.93252,1621.9,1621.6,1.061804]
[1744610500285,4.93279,1621.8,1621.6,1.061804]
[1744610500503,4.93279,1621.8,1621.5,0.751]
[1744610502319,9.86579,1621.8,1621.5,0.751]
[1744610502474,4.93279,1621.8,1621.5,0.751]
[1744610502676,4.9334,1621.6,1621.1,1.76616722]
[1744610502913,4.9334,1621.6,1621.3,4.93427]
[1744610503111,4.93318,1621.7,1621.3,4.93427]
[1744610503822,4.93292,1621.8,1621.4,5.68485]
[1744610505322,0.8258,1621.9,1621.4,5.68483]
[1744610505323,5.75829,1621.9,1621.4,5.68483]
[1744610505486,4.93289,1621.8,1621.4,5.68483]
[1744610505689,4.93314,1621.7,1621.4,7.07487172]
[1744610505888,9.86641,1621.7,1621.4,2.14104172]
[1744610506207,5.75851,1621.9,1621.2,0.751]
[1744610506374,4.93441,1621.3,1621.1,0.02]
[1744610506570,5.75954,1621.5,1621.1,4.9549]
[1744610509120,10.69354,1621.5,1621.1,0.02]
[1744610509381,4.93313,1621.7,1621.3,4.9341]
[1744610509596,4.9328,1621.8,1621.4,4.93387]
[1744610509778,4.93252,1621.9,1621.5,4.93342]
[1744610509977,9.86468,1622.0,1621.6,5.69559]
[1744610510288,9.8646,1622.0,1621.6,5.69556]
[1744610510617,4.93221,1622.0,1621.6,6.758484]
[1744610510783,22.22394,1622.1,1621.7,4.93297]
[1744610510986,4.93234,1622.0,1621.6,11.691664]
[1744610511219,17.29186,1622.1,1621.7,4.93308]
[1744610511420,5.99999,1622.1,1621.8,10.62752]
[1744610511625,5.99999,1622.1,1621.9,5.995122]
[1744610511829,5.7226,1622.4,1622.0,5.69448]
[1744610512142,8.98034382,1622.5,1622.2,4.93152]
[1744610512307,4.04966382,1622.5,1622.3,5.69335]
[1744610512543,4.93017,1622.7,1622.3,5.69335]
[1744610512858,4.93017,1622.7,1622.3,6.755839]
[1744610513070,4.04966382,1622.8,1622.5,4.93064]
[1744610513247,4.04966382,1622.8,1622.7,8.21136717]
[1744610513571,4.04966382,1622.8,1622.7,12.52366717]
[1744610514108,4.04966382,1622.8,1622.7,11.97366717]
[1744610514340,4.04966382,1622.8,1622.7,13.66406789]
[1744610514543,4.04966382,1622.8,1622.7,2.45270072]
[1744610514759,4.04966382,1622.8,1622.7,0.7623]
[1744610515059,4.04966382,1622.8,1622.7,5.69235]
[1744610515551,5.72042,1623.2,1622.7,5.69235]
[1744610515552,4.92891,1623.1,1622.7,5.69235]
[1744610516052,4.92891,1623.1,1622.7,5.69231]
[1744610516511,4.92859,1623.2,1622.8,4.9297]
[1744610516713,4.92846,1623.3,1622.9,5.42223]
[1744610517942,4.9287,1623.2,1622.7,5.69227]
[1744610518148,9.85752,1623.2,1622.7,5.69222]
[1744610518318,4.9287,1623.2,1622.8,4.99124557]
[1744610518525,4.9287,1623.2,1622.8,4.99120557]
[1744610519111,4.9287,1623.2,1622.8,4.92959]
[1744610519313,4.9287,1623.2,1622.9,0.492959]
[1744610519514,5.71955,1623.4,1622.7,5.69235]
[1744610519846,4.9291,1623.1,1622.7,5.69235]
[1744610520044,4.92826,1623.3,1622.7,0.7623]
[1744610520236,4.92925,1623.0,1622.7,0.7623]
[1744610520436,4.92925,1623.0,1622.7,1.63156]
[1744610520636,4.92887,1623.1,1622.7,6.62319863]
[1744610520820,4.92855,1623.2,1622.8,4.87968]
[1744610521246,4.92823,1623.3,1622.9,0.06161435]
[1744610521643,4.92823,1623.3,1622.9,4.92943]
[1744610521644,9.8567,1623.3,1622.9,4.92943]
[1744610521848,4.92938,1623.0,1622.7,1.63156]
[1744610522013,4.92938,1623.0,1622.7,0.7623]
[1744610522518,4.92886,1623.1,1622.7,5.69232]
[1744610522731,9.85793,1623.1,1622.7,5.69232]
[1744610523246,9.8579,1623.1,1622.7,5.69232]
[1744610523646,4.92915,1623.0,1622.7,0.7623]
[1744610524027,4.92955,1622.9,1622.5,12.05089]
[1744610524528,4.93007,1622.7,1622.3,4.93126]
[1744610524844,15.85904,1622.9,1622.3,4.09041717]
[1744610525018,15.85907,1622.9,1622.5,4.93044]
[1744610525443,4.92985,1622.8,1622.4,4.9309]
[1744610525754,4.93038,1622.6,1622.3,0.8091]
[1744610525949,9.86094,1622.6,1622.2,11.28655]
[1744610526134,9.86094,1622.6,1622.1,8.21316717]
[1744610526135,4.93108,1622.4,1622.1,0.8091]
[1744610526335,4.93133,1622.3,1621.9,1.871852]
[1744610526638,4.9317,1622.2,1621.9,0.8091]
[1744610527016,0.8019,1622.3,1621.9,5.74157]
[1744610527216,5.7332,1622.3,1621.9,10.67387]
[1744610527622,0.8019,1622.3,1621.9,0.8091]
[1744610527918,5.73322,1622.3,1621.9,5.74145]
[1744610528125,4.93132,1622.3,1621.9,12.06936272]
[1744610528333,5.7326,1622.5,1622.0,4.99381636]
[1744610528668,4.93069,1622.5,1622.2,0.8091]
[1744610529055,9.86154,1622.5,1622.2,0.8091]
[1744610529257,4.93099,1622.4,1622.2,0.8091]
[1744610529833,4.93168,1622.2,1621.8,5.74182]
[1744610530035,4.93168,1622.2,1621.8,10.67445]
[1744610531872,5.73325,1622.3,1621.9,4.93243]
[1744610532159,10.66472,1622.3,1621.9,4.93243]
[1744610532544,5.73325,1622.3,1621.9,4.93243]
[1744610533046,4.93208,1622.1,1621.8,0.8091]
[1744610533256,4.93218,1622.0,1621.7,6.73372187]
[1744610534465,12.08721,1622.3,1621.9,4.93229]
[1744610534666,6.354,1622.3,1622.0,4.93218]
[1744610534830,5.73263,1622.5,1622.1,4.93183]
[1744610535034,4.931,1622.4,1622.0,5.506198]
[1744610535269,4.93137,1622.3,1622.0,0.574128]
[1744610535768,4.93175,1622.2,1621.8,4.93275]
[1744610535931,0.8019,1622.2,1621.7,12.47575187]
[1744610536136,4.93211,1622.1,1621.7,7.54270187]
[1744610536742,4.93211,1622.1,1621.8,4.93277]
[1744610536940,5.73348,1622.2,1621.8,9.86541]
[1744610537138,4.93131,1622.3,1621.9,4.93225]
[1744610537380,4.93131,1622.3,1622.0,4.93218]
[1744610537742,8.73287,1622.4,1622.0,10.67336]
[1744610537937,13.66403,1622.4,1622.0,5.74118]
[1744610538868,8.73287,1622.4,1622.1,4.93183]
[1744610539042,8.73287,1622.4,1622.0,10.6732]
[1744610539244,8.73287,1622.4,1622.0,11.74052]
[1744610539582,4.9317,1622.2,1621.8,11.93041919]
[1744610540355,0.8091,1622.1,1621.7,1.80068187]
[1744610540557,4.93263,1621.9,1621.7,1.80068187]
[1744610540849,4.93232,1622.0,1621.7,1.80068187]
[1744610541495,4.9327,1621.9,1621.7,1.80068187]
[1744610541639,9.86543,1621.9,1621.7,1.80068187]
[1744610541968,4.93279,1621.8,1621.7,1.80068187]
[1744610542271,4.93359,1621.6,1621.2,0.8175]
[1744610542478,4.9338,1621.5,1621.2,0.8175]
[1744610542869,4.93461,1621.2,1621.1,0.02]
[1744610543343,10.93403,1621.4,1621.1,0.02]
[1744610543748,5.99999,1621.4,1621.2,4.93461]
[1744610544151,4.93434,1621.3,1621.1,0.02]
[1744610544355,5.74371,1621.2,1621.1,0.02]
[1744610546759,14.7437,1621.2,1621.1,0.02]
[1744610548590,9.80909,1621.2,1621.1,0.02]
[1744610548783,8.99999,1621.2,1621.1,0.02]
[1744610549154,13.9346,1621.2,1621.1,0.02]
[1744610549362,14.7437,1621.2,1621.1,0.02]
[1744610549985,11.7437,1621.2,1621.1,0.02]
[1744610550172,6.80909,1621.2,1621.1,0.02]
[1744610550488,6.357,1621.3,1621.1,0.02]
[1744610550870,5.99999,1621.6,1621.1,0.02]
[1744610550871,18.1005,1621.6,1621.2,9.8691]
[1744610551205,13.16709,1621.6,1621.3,4.93421]
[1744610551355,5.99999,1621.6,1621.5,4.9337]
[1744610551705,4.93301,1621.8,1621.4,4.93385]
[1744610551889,9.86639,1621.7,1621.3,5.75175]
[1744610552085,4.93311,1621.7,1621.3,5.75175]
[1744610552499,4.93311,1621.7,1621.3,11.853445]
[1744610552659,9.86646,1621.7,1621.3,6.919195]
[1744610553572,9.86646,1621.7,1621.2,4.93445]
[1744610553573,5.7426,1621.6,1621.2,4.93445]
[1744610553775,15.90799,1621.5,1621.1,0.02]
[1744610553975,8.74371,1621.2,1621.1,0.02]
[1744610554186,18.57501717,1621.2,1621.1,0.02]
[1744610554484,9.87259,1620.7,1620.3,5.75484]
[1744610554875,4.93621,1620.7,1620.3,5.75484]
[1744610555084,12.10293,1620.8,1620.3,5.75467]
[1744610555292,6.358,1620.8,1620.5,4.93674]
[1744610555998,11.29388,1620.8,1620.4,9.87406]
[1744610556166,6.358,1620.8,1620.5,4.93672]
[1744610556372,6.358,1620.8,1620.3,0.8175]
[1744610556373,4.93655,1620.6,1620.3,0.8175]
[1744610556800,4.93655,1620.6,1620.3,5.75485]
[1744610557005,4.93641,1620.7,1620.3,5.75485]
[1744610557520,11.29387,1620.8,1620.3,5.75473]
[1744610557668,16.22991,1620.8,1620.4,4.93702]
[1744610557869,11.29387,1620.8,1620.4,9.87393]
[1744610558070,11.29387,1620.8,1620.4,4.93691]
[1744610558269,6.358,1620.8,1620.5,4.93674]
[1744610559198,6.358,1620.8,1620.4,4.93691]
[1744610559199,4.93617,1620.7,1620.4,4.93691]
[1744610559403,4.93617,1620.7,1620.3,5.75478]
[1744610559787,4.93617,1620.7,1620.3,10.69197]
[1744610560019,16.23014,1620.8,1620.4,4.93704]
[1744610560223,4.93654,1620.6,1620.2,4.93738]
[1744610560526,4.93654,1620.6,1620.2,9.87493]
[1744610561423,9.87318,1620.6,1620.2,4.93738]
[1744610561718,4.93654,1620.6,1620.2,4.93738]
[1744610561931,9.87317,1620.6,1620.2,4.93738]
[1744610562423,9.87317,1620.6,1620.1,5.78604]
[1744610562424,9.87385,1620.5,1620.1,5.78604]
[1744610562635,0.817,1620.3,1620.1,0.02]
[1744610563306,5.75459,1620.3,1620.1,0.02]
[1744610564017,4.93149154,1620.2,1620.1,0.02]
[1744610564215,11.74848154,1620.2,1620.1,0.02]
[1744610564406,4.93917,1619.8,1619.6,0.3943998]
[1744610564610,5.75618,1619.7,1619.6,0.3943998]
[1744610564896,0.817,1619.7,1619.6,0.3943998]
[1744610565100,0.817,1619.9,1619.6,5.3337498]
[1744610565408,4.93843,1620.0,1619.6,6.1203498]
[1744610565797,9.87691,1620.0,1619.6,1.1809998]
[1744610566335,9.87691,1620.0,1619.6,0.3943998]
[1744610566336,5.75558,1619.9,1619.6,0.3943998]
[1744610566725,9.421,1620.0,1619.7,4.93918]
[1744610566934,9.421,1620.0,1619.6,5.3337798]
[1744610567113,9.421,1620.0,1619.6,5.3336998]
[1744610567315,14.35928,1620.0,1619.6,5.3336998]
[1744610567516,14.35928,1620.0,1619.6,10.2730298]
[1744610567752,14.35928,1620.0,1619.6,5.3336998]
[1744610567929,11.35928,1620.0,1619.6,10.2730398]
[1744610568259,11.35928,1620.0,1619.7,4.93916]
[1744610568260,6.421,1620.0,1619.7,4.93916]
[1744610568415,15.87556,1620.2,1619.8,4.93887]
[1744610568753,10.93767,1620.2,1619.8,4.93876]
[1744610568984,5.99999,1620.2,1619.9,4.93848]
[1744610569258,4.93798,1620.1,1619.7,4.93917]
[1744610569461,10.93775,1620.2,1619.8,5.72533]
[1744610569658,15.87563,1620.2,1619.8,5.72533]
[1744610569857,15.87563,1620.2,1619.6,0.3943998]
[1744610569858,0.7624,1620.0,1619.6,0.3943998]
[1744610570162,4.93887,1619.9,1619.6,0.3943998]
[1744610570470,4.93893,1619.8,1619.6,0.3943998]
[1744610570696,4.93887,1619.9,1619.6,0.3943998]
[1744610571056,4.93918,1619.7,1619.6,0.3943998]
[1744610572084,5.70158,1619.7,1619.6,0.3943998]
[1744610573088,10.31239,1619.7,1619.1,0.02]
[1744610573320,8.70311,1619.2,1619.1,0.02]
[1744610573613,14.7031,1619.2,1619.1,0.02]
[1744610574163,24.95741717,1619.2,1619.1,0.02]
[1744610574371,4.94368,1618.3,1618.1,0.02]
[1744610574570,18.53746717,1618.2,1616.7,2.59594131]
[1744610574777,4.94468,1617.9,1616.7,2.59594131]
[1744610574960,4.94554,1617.7,1617.0,4.94732]
[1744610575180,6.11265998,1618.1,1617.1,3.30131717]
[1744610575375,3.0,1618.5,1617.6,3.28131717]
[1744610575576,10.94305,1618.5,1618.0,4.94417]
[1744610575792,4.94322,1618.4,1618.0,1.249517]
[1744610575981,0.32196925,1618.4,1618.3,4.94343]
[1744610576194,0.32196925,1618.4,1618.0,0.494417]
[1744610576358,0.32196925,1618.4,1617.5,0.67920306]
[1744610576359,4.94334,1618.4,1617.8,9.88964]
[1744610576562,4.94345,1618.3,1617.8,4.9448]
[1744610576895,4.94334,1618.4,1617.8,4.9448]
[1744610576896,11.92634,1618.4,1617.8,9.88964]
[1744610577087,11.92634,1618.4,1617.9,4.94467]
[1744610577286,11.92634,1618.4,1617.8,4.9448]
[1744610577485,0.7624,1618.3,1617.6,4.9453]
[1744610577685,5.70585,1618.3,1617.7,4.94515]
[1744610578261,4.94382,1618.2,1617.7,4.94515]
[1744610578485,11.92618,1618.4,1617.9,4.9445]
[1744610579078,11.92618,1618.4,1617.4,9.25129]
[1744610579079,4.94379,1618.2,1617.4,0.7551]
[1744610579394,4.9442,1618.1,1617.6,4.94559]
[1744610579871,4.9442,1618.1,1617.5,4.9457]
[1744610579872,4.94439,1618.0,1617.5,4.9457]
[1744610580082,4.94495,1617.9,1617.4,5.70127]
[1744610580385,7.7474,1618.0,1617.7,4.94528]
[1744610580541,6.985,1618.0,1617.7,4.94528]
[1744610580871,6.985,1618.0,1617.8,4.94491]
[1744610581044,0.7624,1618.3,1617.9,4.94453]
[1744610581244,5.72726,1618.6,1618.1,4.94385]
[1744610581462,17.92728,1618.7,1618.3,4.94331]
[1744610581650,4.94302,1618.5,1618.1,4.94387]
[1744610581853,4.94368,1618.3,1617.9,0.8006]
[1744610582053,9.88737,1618.3,1617.9,0.8006]
[1744610582256,4.94368,1618.3,1617.9,0.8006]
[1744610582571,9.88655,1618.4,1617.9,5.74509]
[1744610582774,4.94315,1618.4,1617.9,10.68955]
[1744610583068,9.88655,1618.4,1617.9,5.74506]
[1744610583272,4.94359,1618.3,1617.9,0.8006]
[1744610583442,4.94315,1618.4,1617.9,5.74524]
[1744610583640,5.99999,1618.7,1618.5,4.94264]
[1744610583861,6.987,1619.0,1618.6,4.94254]
[1744610583862,11.92837,1619.0,1618.6,4.94254]
[1744610584065,4.94191,1618.9,1618.4,5.74373]
[1744610584265,4.94191,1618.9,1618.5,4.94278]
[1744610584464,11.92832,1619.0,1618.5,4.94265]
[1744610584672,11.92832,1619.0,1618.6,4.94253]
[1744610584879,10.9408,1619.2,1618.7,4.94206]
[1744610585067,4.94121,1619.1,1618.7,4.94206]
[1744610585398,4.94121,1619.1,1618.6,4.94234]
[1744610585694,4.93982,1619.5,1619.0,4.94103]
[1744610585997,18.69638,1619.6,1619.1,4.94082]
[1744610586187,17.92648,1619.6,1619.2,4.94053]
[1744610586695,4.93983,1619.5,1619.0,4.94129]
[1744610586867,0.7699,1619.4,1618.7,4.94206]
[1744610587068,4.94126,1619.1,1618.6,5.70394]
[1744610587291,4.94126,1619.1,1618.6,5.70372]
[1744610587492,4.94071,1619.2,1618.7,4.94211]
[1744610587694,3.06177053,1619.2,1618.6,1.331772]
[1744610587898,8.00262053,1619.2,1618.8,4.94181]
[1744610588197,0.06177053,1619.2,1618.9,4.94151]
[1744610588392,0.06177053,1619.2,1618.8,4.94178]
[1744610588599,5.00256053,1619.2,1618.8,4.94178]
[1744610588797,0.06177053,1619.2,1618.8,9.88342]
[1744610589000,0.06177053,1619.2,1618.8,4.94171]
[1744610589200,0.06177053,1619.2,1618.9,9.883]
[1744610589399,0.06177053,1619.2,1618.9,4.94141]
[1744610589567,0.06177053,1619.2,1618.8,4.94191]
[1744610589772,4.94103,1619.1,1618.7,4.94215]
[1744610590099,5.00266053,1619.2,1618.8,4.94181]
[1744610590801,0.06177053,1619.3,1619.0,4.94116]
[1744610590967,5.99999,1619.4,1618.9,4.94156]
[1744610591306,4.93981,1619.5,1619.1,4.94101]
[1744610591488,0.06177053,1619.4,1618.8,4.9419]
[1744610591798,4.94021,1619.4,1618.9,4.94145]
[1744610591985,5.00218053,1619.3,1618.9,9.88295]
[1744610592165,5.00218053,1619.3,1618.9,4.94145]
[1744610592969,5.00222053,1619.3,1618.9,4.94145]
[1744610593371,0.06177053,1619.3,1618.9,4.94145]
[1744610593682,0.06177053,1619.3,1619.0,4.9412]
[1744610593904,0.06177053,1619.3,1619.0,9.88232]
[1744610594107,0.06177053,1619.4,1618.7,8.92898173]
[1744610594306,3.06177053,1619.5,1619.3,4.94037]
[1744610594704,8.00172053,1619.5,1619.1,4.94089]
[1744610594891,12.94178053,1619.5,1619.1,4.94089]
[1744610595296,4.9401,1619.4,1619.0,4.94101]
[1744610595606,5.00230053,1619.3,1618.9,5.70289]
[1744610595979,0.06177053,1619.3,1618.7,4.94211]
[1744610596197,4.94112,1619.1,1618.7,4.94211]
[1744610596508,4.94112,1619.1,1618.7,9.88419]
[1744610596805,5.00289053,1619.1,1618.7,9.88419]
[1744610597000,4.94191,1618.9,1618.5,4.94274]
[1744610597196,10.94093,1619.2,1618.6,4.94253]
[1744610597197,0.06177053,1618.8,1618.6,4.94253]
[1744610597395,5.00358053,1618.9,1618.4,5.70447]
[1744610597597,5.00358053,1618.9,1618.2,6.985]
[1744610597598,6.83166053,1618.9,1618.2,4.94372]
[1744610597782,9.88607,1618.5,1618.1,4.94406]
[1744610597977,5.77496053,1618.4,1617.9,5.70607]
[1744610598313,4.94358,1618.3,1617.9,5.70607]
[1744610598612,4.94423,1618.1,1617.7,11.93026]
[1744610598906,8.00581053,1618.2,1617.8,4.94485]
[1744610599109,4.94424,1618.1,1617.6,5.70697]
[1744610599295,0.06177053,1618.1,1617.8,4.94486]
[1744610599806,0.06177053,1618.1,1617.7,4.94528]
[1744610600007,10.94457,1618.0,1617.5,4.94564]
[1744610600208,10.94457,1618.0,1617.3,9.89261]
[1744610600209,4.94503,1617.8,1617.3,9.89261]
[1744610600411,0.06177053,1617.7,1617.4,4.94617]
[1744610600711,0.06177053,1617.8,1617.5,4.94589]
[1744610601009,5.00695053,1617.8,1617.4,4.9462]
[1744610601225,0.06177053,1617.8,1617.4,4.94601]
[1744610601429,0.06177053,1617.8,1617.5,4.94574]
[1744610601626,5.00689053,1617.8,1617.3,4.94625]
[1744610601934,4.94588,1617.6,1617.2,0.55]
[1744610602138,4.94651,1617.3,1617.2,0.55]
[1744610602284,5.00828053,1617.3,1617.2,0.55]
[1744610602677,0.06177053,1617.5,1617.2,0.55]
[1744610602834,5.99999,1617.6,1617.5,4.9459]
[1744610603203,0.06177053,1617.8,1617.5,4.9459]
[1744610603534,0.06177053,1617.8,1617.2,1.3218]
[1744610603737,0.06177053,1617.8,1617.7,4.94529]
[1744610603921,5.99999,1618.0,1617.8,4.94486]
[1744610604088,5.99999,1618.0,1617.9,4.94468]
[1744610604330,5.81320053,1618.3,1617.9,4.94465]
[1744610604632,4.94376,1618.2,1617.8,9.88981]
[1744610604833,0.06177053,1618.1,1617.9,4.94465]
[1744610605032,0.06177053,1618.2,1617.8,4.94484]
[1744610605189,5.00564053,1618.2,1617.8,4.94484]
[1744610605394,0.06177053,1618.2,1617.9,4.94458]
[1744610605591,0.06177053,1618.2,1617.9,4.94454]
[1744610605823,0.8078,1618.3,1618.1,4.94407]
[1744610605824,0.06177053,1618.3,1618.1,4.94407]
[1744610606025,3.0,1618.6,1618.2,4.94376]
[1744610606319,0.06177053,1618.5,1618.3,4.94329]
[1744610606625,0.06177053,1618.7,1618.5,4.94282]
[1744610606823,6.86956053,1618.8,1618.5,4.94282]
[1744610608194,6.86956053,1618.8,1618.6,4.94232]
[1744610608195,5.99999,1618.8,1618.6,4.94232]
[1744610608617,7.267,1619.0,1618.7,4.94203]
[1744610608803,70.06986382,1619.3,1618.9,4.94162]
[1744610609131,0.06177053,1619.2,1618.9,9.88304]
[1744610609625,4.04966382,1619.3,1619.2,4.94071]
[1744610610293,4.04966382,1619.3,1619.1,4.94101]
[1744610610717,4.04966382,1619.3,1619.1,4.94081]
[1744610610897,0.06177053,1619.5,1619.3,4.94015]
[1744610611297,0.06177053,1619.7,1619.5,4.93979]
[1744610611628,0.06177053,1619.8,1619.4,4.94007]
[1744610611807,5.00082053,1619.8,1619.4,4.94007]
[1744610612320,3.06177053,1619.8,1619.5,4.93977]
[1744610612824,3.06177053,1619.8,1619.2,4.94067]
[1744610612825,4.93934,1619.7,1619.3,4.94039]
[1744610613016,0.06177053,1619.6,1619.3,4.94039]
[1744610613204,4.94001,1619.5,1619.0,5.71299]
[1744610613400,0.06177053,1619.4,1619.1,4.94097]
[1744610613799,0.06177053,1619.4,1619.2,4.94057]
[1744610614036,0.06177053,1619.5,1619.2,4.94057]
[1744610614634,5.00166053,1619.5,1619.1,4.94099]
[1744610615498,5.00166053,1619.5,1618.9,8.254304]
[1744610615499,4.9401,1619.4,1618.9,4.94151]
[1744610615697,5.00236053,1619.3,1618.9,4.94151]
[1744610616128,9.88173,1619.2,1618.8,4.94177]
[1744610616332,5.81072053,1619.1,1618.7,4.94221]
[1744610616632,8.13457053,1619.1,1618.4,4.94313]
[1744610616797,7.94179,1618.9,1618.5,4.94283]
[1744610617005,0.06177053,1618.8,1618.5,4.94283]
[1744610618837,5.00372053,1618.8,1618.4,4.94296]
[1744610619330,0.06177053,1618.8,1618.5,4.94273]
[1744610619536,0.06177053,1618.8,1618.6,4.94238]
[1744610619714,5.00320053,1619.0,1618.6,4.94243]